bitfinex/quotes_BTCUSD_20220304
["timestamp","ask_amount","ask_price","bid_price","bid_amount"]
[1646394922864,0.415806,41851.0,41850.0,0.82108891]
[1646394923062,0.465806,41851.0,41850.0,0.82108891]
[1646394923264,0.465806,41851.0,41850.0,0.44353119]
[1646394923463,0.465806,41851.0,41850.0,0.36887116]
[1646394926205,0.525596,41851.0,41850.0,0.36887116]
[1646394929453,0.8828662,41851.0,41850.0,0.36887116]
[1646394929650,0.9828662,41851.0,41850.0,0.36887116]
[1646394929855,0.9828662,41851.0,41850.0,0.26]
[1646394930148,0.9828662,41851.0,41846.0,0.12572524]
[1646394930347,0.059801,41843.0,41837.0,1.4453056]
[1646394930548,0.059801,41843.0,41842.0,0.02555423]
[1646394930549,0.37348589,41843.0,41842.0,0.02555423]
[1646394930746,0.37348589,41843.0,41842.0,0.02389001]
[1646394931149,0.42348589,41843.0,41842.0,0.02389001]
[1646394931407,0.47348589,41843.0,41842.0,0.02389001]
[1646394932210,0.42348589,41843.0,41842.0,0.02389001]
[1646394932806,0.42348589,41843.0,41842.0,0.09666089]
[1646394933007,0.42348589,41843.0,41842.0,0.02389001]
[1646394933411,0.77714357,41843.0,41842.0,0.02389001]
[1646394933611,0.82714357,41843.0,41842.0,0.02389001]
[1646394935357,0.92714357,41843.0,41842.0,0.02389001]
[1646394935557,0.92714357,41843.0,41831.0,0.01]
[1646394935558,1.05,41842.0,41831.0,0.01]
[1646394935758,1.05,41842.0,41836.0,0.00166422]
[1646394935759,0.059825,41839.0,41836.0,0.00166422]
[1646394935955,0.059825,41839.0,41831.0,0.01]
[1646394935956,0.38125784,41838.0,41831.0,0.01]
[1646394936155,0.253997,41836.0,41835.0,0.00166422]
[1646394936360,0.253997,41836.0,41825.0,0.00025]
[1646394936361,0.365806,41834.0,41825.0,0.00025]
[1646394936557,0.253997,41832.0,41829.0,0.0222286]
[1646394936756,0.253997,41832.0,41831.0,3.019e-05]
[1646394936757,0.31907976,41832.0,41831.0,3.019e-05]
[1646394936958,0.31907976,41832.0,41825.0,0.05289795]
[1646394936959,0.059829,41831.0,41825.0,0.05289795]
[1646394937159,0.365806,41830.0,41825.0,0.05289795]
[1646394937359,0.465806,41830.0,41829.0,0.1178]
[1646394937764,0.004,41833.0,41829.0,0.1178]
[1646394937959,0.004,41833.0,41828.0,0.2]
[1646394937960,0.01874334,41833.0,41832.0,0.1178]
[1646394938356,0.369894,41833.0,41832.0,0.1178]
[1646394938758,0.365894,41836.0,41832.0,0.4655372]
[1646394939004,0.365894,41842.0,41835.0,0.1178]
[1646394939207,0.365894,41843.0,41841.0,0.07088443]
[1646394939506,0.118596,41842.0,41833.0,0.3477372]
[1646394939704,0.118596,41842.0,41837.0,0.1178]
[1646394939903,0.118596,41842.0,41832.0,0.3477372]
[1646394940104,0.365894,41839.0,41828.0,0.2298]
[1646394940303,0.465894,41839.0,41828.0,0.2298]
[1646394940504,0.465894,41839.0,41832.0,0.2851909]
[1646394940704,0.05,41839.0,41833.0,0.06239575]
[1646394940936,0.365894,41838.0,41836.0,0.1178]
[1646394941105,0.002,41842.0,41837.0,0.27113007]
[1646394941306,0.365894,41841.0,41837.0,0.27049697]
[1646394941502,0.002,41840.0,41837.0,0.27049697]
[1646394941702,0.365894,41838.0,41834.0,0.05862684]
[1646394942751,0.365894,41838.0,41835.0,0.21440713]
[1646394942951,0.01008581,41837.0,41835.0,0.21440713]
[1646394943152,0.0162525,41840.0,41835.0,0.21440713]
[1646394943352,0.116596,41839.0,41835.0,0.21440713]
[1646394943552,0.01120096,41839.0,41835.0,0.66440713]
[1646394943752,0.002,41840.0,41836.0,0.05979488]
[1646394943957,0.01078872,41837.0,41836.0,1.45979488]
[1646394944155,0.01727625,41843.0,41842.0,0.20931442]
[1646394944353,0.01727625,41843.0,41842.0,0.54413613]
[1646394944354,0.365894,41843.0,41842.0,0.54413613]
[1646394944753,0.365894,41843.0,41842.0,0.66193613]
[1646394944959,0.04867259,41844.0,41842.0,0.54413613]
[1646394945161,2.29489256,41852.0,41843.0,1.1875912]
[1646394945380,0.365894,41851.0,41844.0,1.4]
[1646394945555,2.29489256,41852.0,41845.0,0.24518399]
[1646394945556,0.005,41849.0,41845.0,0.24518399]
[1646394945756,0.005,41849.0,41848.0,0.1178]
[1646394945955,0.005,41849.0,41847.0,0.45]
[1646394946419,0.005,41849.0,41848.0,0.0609923]
[1646394947018,0.0001,41849.0,41848.0,0.52527994]
[1646394947223,0.0041,41860.0,41856.0,0.25]
[1646394947425,0.0041,41860.0,41859.0,0.05670332]
[1646394947624,0.5,41866.0,41859.0,1.01908496]
[1646394947920,0.44851,41864.0,41863.0,0.5678]
[1646394948119,0.05,41873.0,41872.0,0.17042222]
[1646394948318,0.0011,41874.0,41872.0,0.17042222]
[1646394948917,0.365894,41873.0,41872.0,0.17042222]
[1646394949121,0.0011,41874.0,41869.0,0.45]
[1646394949319,0.01348952,41873.0,41869.0,0.28696239]
[1646394949523,0.059758,41871.0,41865.0,0.59648764]
[1646394949725,0.119515,41876.0,41864.0,0.7848]
[1646394949726,0.01,41879.0,41878.0,0.075485]
[1646394949919,0.01,41879.0,41870.0,0.85]
[1646394949920,0.03593867,41877.0,41870.0,0.85]
[1646394950157,2.08328305,41874.0,41870.0,0.85]
[1646394950354,0.365894,41873.0,41870.0,0.85]
[1646394950561,0.365894,41873.0,41870.0,0.31171074]
[1646394950757,0.53542,41873.0,41870.0,0.31171074]
[1646394950954,0.53542,41873.0,41872.0,0.14]
[1646394951757,0.53542,41873.0,41871.0,0.190242]
[1646394952359,0.53542,41873.0,41872.0,0.14]
[1646394952958,0.53542,41873.0,41871.0,0.190242]
[1646394954123,0.73174155,41873.0,41871.0,0.190242]
[1646394954921,0.53542,41873.0,41871.0,0.190242]
[1646394955121,0.53542,41873.0,41871.0,0.18123126]
[1646394955928,0.25608355,41874.0,41871.0,0.18123126]
[1646394956228,0.25608355,41874.0,41872.0,0.11950381]
[1646394956229,0.425656,41874.0,41872.0,0.11950381]
[1646394956424,0.059762,41874.0,41872.0,0.11950381]
[1646394956623,0.059762,41874.0,41872.0,0.35085907]
[1646394957228,0.059762,41874.0,41873.0,0.14]
[1646394957528,0.425656,41874.0,41873.0,0.14]
[1646394958555,0.425656,41874.0,41873.0,0.38]
[1646394959357,0.365894,41874.0,41873.0,0.38]
[1646394959557,0.365894,41876.0,41875.0,0.21321379]
[1646394960057,0.365894,41876.0,41875.0,0.39444505]
[1646394960258,0.365894,41876.0,41873.0,0.16937283]
[1646394960463,0.09093867,41877.0,41873.0,0.16937283]
[1646394960859,0.365894,41876.0,41873.0,0.16937283]
[1646394961709,0.425646,41876.0,41873.0,0.16937283]
[1646394962007,0.475646,41876.0,41873.0,0.16937283]
[1646394962411,0.67196755,41876.0,41873.0,0.16937283]
[1646394964010,0.475646,41876.0,41873.0,0.16937283]
[1646394964408,0.0140603,41875.0,41873.0,0.16937283]
[1646394964609,0.13231983,41874.0,41873.0,0.16937283]
[1646394964808,0.166596,41874.0,41873.0,0.30937283]
[1646394965254,1.35,41873.0,41859.0,0.7904]
[1646394965455,0.161596,41874.0,41873.0,7.01491557]
[1646394965456,0.29074963,41874.0,41873.0,7.01491557]
[1646394965657,1.6104274,41874.0,41873.0,6.19412012]
[1646394965856,1.59640132,41874.0,41873.0,5.83536712]
[1646394966052,1.92139678,41874.0,41873.0,4.91660685]
[1646394966252,3.36390232,41874.0,41873.0,3.80884412]
[1646394966451,3.36390232,41874.0,41873.0,2.46366858]
[1646394966651,3.36390232,41874.0,41873.0,1.40000233]
[1646394966851,3.36390232,41874.0,41873.0,1.04124333]
[1646394967052,3.15349678,41874.0,41873.0,1.04124333]
[1646394967250,3.44265578,41874.0,41873.0,0.67168987]
[1646394967651,3.11766032,41874.0,41873.0,0.66120603]
[1646394967853,0.179357,41869.0,41851.0,0.34641014]
[1646394968053,0.39554596,41865.0,41855.0,0.14]
[1646394968255,0.39554596,41865.0,41850.0,0.35365656]
[1646394968256,0.24554596,41863.0,41850.0,0.35365656]
[1646394968550,0.164422,41862.0,41847.0,0.2423]
[1646394968751,0.45996796,41862.0,41847.0,0.2423]
[1646394969002,2.15036743,41852.0,41847.0,0.2423]
[1646394969204,0.17826487,41851.0,41847.0,0.24]
[1646394969403,0.52612478,41851.0,41847.0,0.24]
[1646394969601,0.116622,41849.0,41847.0,0.24]
[1646394970005,0.41930578,41848.0,41835.0,0.36190188]
[1646394970205,0.116622,41847.0,41835.0,0.2423]
[1646394970603,0.164422,41847.0,41835.0,0.2423]
[1646394970999,0.164422,41847.0,41838.0,0.1764865]
[1646394971603,0.01457639,41843.0,41829.0,0.36010376]
[1646394971806,0.01457639,41843.0,41833.0,0.02389715]
[1646394971807,0.116622,41842.0,41833.0,0.02389715]
[1646394972003,0.166622,41842.0,41837.0,0.02389772]
[1646394972205,0.166622,41842.0,41825.0,0.23985]
[1646394972405,0.166622,41842.0,41825.0,0.99525]
[1646394972406,0.30849769,41841.0,41825.0,0.99525]
[1646394972660,0.05982,41839.0,41825.0,0.99525]
[1646394972857,0.47536778,41838.0,41825.0,0.99525]
[1646394973056,0.52536778,41838.0,41825.0,0.99525]
[1646394973457,0.58519978,41838.0,41825.0,0.00025]
[1646394973676,0.58519978,41838.0,41828.0,0.21015554]
[1646394973677,0.059835,41835.0,41828.0,0.21015554]
[1646394973857,0.116622,41834.0,41832.0,0.16712074]
[1646394974055,0.01137803,41833.0,41832.0,0.16712074]
[1646394974256,0.116622,41833.0,41832.0,0.16712074]
[1646394976414,0.059822,41831.0,41825.0,0.25653118]
[1646394976614,0.116622,41830.0,41825.0,0.00025]
[1646394976815,0.166622,41830.0,41829.0,0.14]
[1646394977614,0.166622,41830.0,41829.0,0.02390857]
[1646394978519,0.166622,41830.0,41829.0,0.26390857]
[1646394979114,0.166622,41830.0,41829.0,0.26390457]
[1646394981157,0.011088,41835.0,41830.0,1.4]
[1646394981355,0.22946,41841.0,41834.0,0.21293084]
[1646394981558,0.17946,41841.0,41834.0,0.21293084]
[1646394981755,0.059817,41837.0,41834.0,0.21293084]
[1646394982359,0.059817,41837.0,41835.0,0.21739287]
[1646394982758,0.059817,41837.0,41834.0,0.21293084]
[1646394983158,0.059817,41837.0,41836.0,0.21609706]
[1646394983363,0.059817,41837.0,41834.0,0.21293084]
[1646394983564,0.03638796,41839.0,41834.0,0.21293084]
[1646394983763,0.03638796,41839.0,41835.0,0.25074816]
[1646394984608,0.059806,41838.0,41835.0,0.25074816]
[1646394985008,0.059806,41838.0,41835.0,0.30616722]
[1646394985207,0.059806,41838.0,41835.0,0.365973]
[1646394985808,0.059806,41838.0,41836.0,0.21205075]
[1646394986810,0.03638796,41839.0,41836.0,0.21205075]
[1646394987852,0.03638796,41839.0,41835.0,0.31055394]
[1646394988057,0.09619396,41839.0,41836.0,0.24]
[1646394989452,0.09619396,41839.0,41835.0,0.25074816]
[1646394989453,0.04619396,41839.0,41835.0,0.25074816]
[1646394989853,0.08171395,41839.0,41835.0,0.25074816]
[1646394990253,0.08171395,41839.0,41833.0,0.00859543]
[1646394991254,0.08171395,41839.0,41830.0,1.4]
[1646394991509,0.3616884,41838.0,41830.0,1.4]
[1646394991710,0.119645,41836.0,41830.0,1.4]
[1646394991907,0.179487,41834.0,41829.0,0.2284]
[1646394992108,0.059832,41832.0,41829.0,0.2284]
[1646394992309,0.059832,41832.0,41826.0,0.28460651]
[1646394992509,0.059832,41832.0,41825.0,0.2195932]
[1646394993507,0.059832,41832.0,41825.0,0.43285518]
[1646394994009,0.059832,41832.0,41825.0,0.49268018]
[1646394994610,0.40981382,41832.0,41825.0,0.43285518]
[1646394994909,0.01485254,41830.0,41825.0,0.2195932]
[1646394995159,0.059828,41829.0,41825.0,0.2195932]
[1646394995359,0.07397927,41829.0,41825.0,0.2195932]
[1646394995761,0.07397927,41829.0,41825.0,0.00025]
[1646394995962,0.42396109,41829.0,41825.0,0.00025]
[1646394996161,0.179515,41828.0,41825.0,0.00025]
[1646394996360,0.279515,41828.0,41825.0,0.00025]
[1646394997466,0.5,41827.0,41825.0,0.00025]
[1646394997661,0.67952,41827.0,41825.0,0.00025]
[1646394997863,0.1,41826.0,41825.0,0.00025]
[1646394998363,0.6,41826.0,41825.0,0.00025]
[1646394999200,0.65,41826.0,41825.0,0.00025]
[1646394999407,0.65,41826.0,41825.0,0.23025]
[1646395000304,0.6,41826.0,41825.0,0.23025]
[1646395001503,0.5,41826.0,41825.0,0.23025]
[1646395001908,0.23828,41826.0,41825.0,0.40180582]
[1646395002106,0.004,41832.0,41826.0,1.4]
[1646395002306,0.004,41832.0,41826.0,1.51962145]
[1646395002972,0.06117589,41841.0,41826.0,1.51962145]
[1646395002973,0.05,41841.0,41837.0,0.44745028]
[1646395003171,0.05,41841.0,41836.0,0.15423875]
[1646395003369,0.02629859,41842.0,41836.0,0.15423875]
[1646395003571,0.004,41841.0,41836.0,0.15423875]
[1646395004171,0.059809,41838.0,41836.0,0.15423875]
[1646395008506,0.059809,41838.0,41836.0,0.41568182]
[1646395010157,0.059809,41838.0,41836.0,0.23]
[1646395011658,0.35017706,41837.0,41836.0,0.0001]
[1646395011857,0.01329357,41835.0,41826.0,0.05]
[1646395012058,0.25651163,41834.0,41826.0,0.05]
[1646395012259,0.35651163,41834.0,41826.0,0.05]
[1646395012457,0.38151163,41834.0,41826.0,0.05]
[1646395012856,0.01077283,41830.0,41826.0,0.05]
[1646395013157,0.059833,41829.0,41826.0,0.05]
[1646395015210,0.059833,41829.0,41826.0,0.109817]
[1646395015807,0.059833,41829.0,41827.0,0.18634825]
[1646395016006,3.3e-05,41829.0,41826.0,0.109817]
[1646395017010,3.3e-05,41829.0,41826.0,0.26792458]
[1646395017209,3.3e-05,41829.0,41826.0,0.109817]
[1646395017659,3.3e-05,41829.0,41826.0,0.104817]
[1646395018260,3.3e-05,41829.0,41826.0,0.05]
[1646395018456,0.059818,41829.0,41826.0,0.109815]
[1646395018857,0.059818,41829.0,41826.0,0.28]
[1646395019863,0.01574228,41828.0,41826.0,0.05]
[1646395020258,0.01574228,41828.0,41824.0,0.30408499]
[1646395020259,0.01574228,41828.0,41824.0,0.1715853]
[1646395020862,0.01574228,41828.0,41824.0,0.29121888]
[1646395022115,0.01792147,41830.0,41824.0,0.29121888]
[1646395022414,0.004,41830.0,41829.0,0.06275365]
[1646395023013,0.02030293,41832.0,41829.0,0.06275365]
[1646395023414,0.059817,41830.0,41829.0,0.06275365]
[1646395024014,0.059817,41830.0,41824.0,0.05981632]
[1646395024218,0.059817,41830.0,41821.0,0.36093468]
[1646395024219,0.40108638,41830.0,41821.0,0.2413]
[1646395024418,0.19668263,41828.0,41821.0,0.2413]
[1646395024616,0.07371444,41826.0,41821.0,0.2413]
[1646395024814,0.17371444,41826.0,41821.0,0.2413]
[1646395025021,0.22371444,41826.0,41818.0,0.8102]
[1646395026669,0.22371444,41826.0,41818.0,0.80980644]
[1646395027771,0.27371444,41826.0,41818.0,0.80980644]
[1646395029021,0.47039707,41826.0,41818.0,0.80980644]
[1646395031418,0.27371444,41826.0,41818.0,0.80980644]
[1646395032420,0.21987314,41824.0,41813.0,0.231]
[1646395032659,0.32991157,41822.0,41813.0,0.231]
[1646395032862,0.19668263,41820.0,41813.0,0.231]
[1646395033060,0.0478,41819.0,41813.0,0.231]
[1646395033358,0.24448263,41819.0,41812.0,1.0]
[1646395033557,0.26948263,41819.0,41812.0,1.0]
[1646395033858,0.48919463,41819.0,41812.0,1.0]
[1646395034058,0.21096689,41818.0,41812.0,1.0]
[1646395034257,0.179562,41815.0,41812.0,1.0]
[1646395034457,0.01017387,41814.0,41812.0,1.0]
[1646395034663,0.01482009,41813.0,41812.0,1.0]
[1646395036509,0.059852,41813.0,41812.0,1.0]
[1646395037309,0.14614616,41813.0,41812.0,1.0]
[1646395044105,0.13714616,41813.0,41812.0,1.0]
[1646395047757,0.13714616,41813.0,41812.0,0.995]
[1646395048155,0.18712022,41813.0,41812.0,0.995]
[1646395048562,0.14612022,41813.0,41812.0,0.995]
[1646395048757,0.09614616,41813.0,41812.0,0.995]
[1646395049356,0.09614616,41813.0,41812.0,1.17454437]
[1646395051160,0.09614616,41813.0,41812.0,0.46955395]
[1646395051411,0.09614616,41813.0,41812.0,0.68643629]
[1646395052212,0.09614616,41813.0,41812.0,0.46955395]
[1646395054718,0.15725255,41813.0,41812.0,0.46955395]
[1646395054919,0.15725255,41813.0,41811.0,0.124]
[1646395055160,0.119714,41810.0,41805.0,0.2476]
[1646395055361,0.119714,41810.0,41802.0,0.7957]
[1646395055560,0.119714,41810.0,41801.0,0.2506]
[1646395055761,0.119714,41810.0,41803.0,0.21402591]
[1646395056164,0.119714,41810.0,41801.0,0.41779525]
[1646395056964,0.119714,41810.0,41804.0,0.06243606]
[1646395057163,0.119714,41810.0,41807.0,0.23224409]
[1646395057363,0.169714,41810.0,41807.0,0.23224409]
[1646395057564,0.169714,41810.0,41805.0,0.059847]
[1646395057862,0.169714,41810.0,41801.0,0.76493661]
[1646395057863,0.269714,41810.0,41801.0,0.76493661]
[1646395058262,0.219714,41810.0,41802.0,0.0587562]
[1646395058662,0.219714,41810.0,41806.0,0.21086543]
[1646395058911,0.119714,41810.0,41801.0,0.76493661]
[1646395059108,0.219714,41810.0,41801.0,0.76493661]
[1646395059309,0.219714,41810.0,41806.0,0.19511627]
[1646395059609,0.059851,41808.0,41801.0,0.82478861]
[1646395059809,0.059851,41808.0,41802.0,0.05577722]
[1646395060011,0.059851,41808.0,41801.0,0.82478861]
[1646395060612,0.059851,41808.0,41802.0,0.18133963]
[1646395061212,0.059851,41808.0,41803.0,0.27155227]
[1646395061416,0.059851,41808.0,41806.0,0.06691796]
[1646395061612,0.059851,41808.0,41806.0,0.12676396]
[1646395061817,0.12318034,41811.0,41807.0,0.34714136]
[1646395062213,0.12318034,41811.0,41810.0,0.24523509]
[1646395062678,0.12318034,41811.0,41810.0,0.18339772]
[1646395062877,0.12318034,41811.0,41807.0,0.34714136]
[1646395063079,0.12318034,41811.0,41808.0,0.18885084]
[1646395063280,0.12318034,41811.0,41808.0,0.24869157]
[1646395063679,0.12318034,41811.0,41809.0,0.28816651]
[1646395063878,0.12318034,41811.0,41810.0,0.16072207]
[1646395064081,0.12318034,41811.0,41809.0,0.21686495]
[1646395064679,0.12318034,41811.0,41809.0,0.276704]
[1646395065479,0.12318034,41811.0,41810.0,0.20545241]
[1646395066081,0.12318034,41811.0,41809.0,0.276704]
[1646395066282,0.12318034,41811.0,41809.0,0.21686495]
[1646395066512,0.12318034,41811.0,41804.0,0.34714136]
[1646395066716,0.12318034,41811.0,41801.0,0.74131157]
[1646395067112,0.12318034,41811.0,41802.0,0.20056078]
[1646395067311,0.12318034,41811.0,41801.0,0.74131157]
[1646395067511,0.12318034,41811.0,41807.0,0.26648082]
[1646395067714,0.12318034,41811.0,41802.0,0.18715053]
[1646395067715,0.1859331,41811.0,41802.0,0.18715053]
[1646395067916,0.119702,41809.0,41802.0,0.18715053]
[1646395070462,0.119702,41809.0,41806.0,0.27541623]
[1646395070762,0.119702,41809.0,41806.0,0.33526423]
[1646395072465,0.05985,41810.0,41806.0,0.33526423]
[1646395073669,0.06333834,41811.0,41807.0,0.16178393]
[1646395076810,0.06333834,41811.0,41810.0,0.20951007]
[1646395078666,0.26002097,41811.0,41806.0,0.33526423]
[1646395080360,0.07050354,41805.0,41804.0,0.46681966]
[1646395080564,0.07050354,41805.0,41804.0,0.80258664]
[1646395080961,0.07050354,41805.0,41804.0,1.0028493]
[1646395081416,0.07050354,41805.0,41804.0,1.35569588]
[1646395081818,0.07050354,41805.0,41804.0,1.1599289]
[1646395083218,0.06333834,41811.0,41804.0,1.1599289]
[1646395083421,0.06333834,41811.0,41805.0,0.059843]
[1646395083619,0.06333834,41811.0,41806.0,0.059845]
[1646395084027,0.06333834,41811.0,41805.0,0.11969]
[1646395084028,0.19668263,41810.0,41805.0,0.11969]
[1646395084222,0.19668263,41807.0,41801.0,0.2506]
[1646395084422,0.19668263,41806.0,41801.0,0.2506]
[1646395084619,0.19668263,41806.0,41801.0,0.01]
[1646395085260,0.19668263,41807.0,41804.0,0.001]
[1646395085463,0.059865,41806.0,41804.0,0.001]
[1646395085659,0.25654763,41806.0,41804.0,0.001]
[1646395086662,0.25654763,41806.0,41804.0,0.060862]
[1646395087366,0.15554763,41806.0,41804.0,0.060862]
[1646395087565,0.179595,41808.0,41804.0,0.060862]
[1646395088467,0.059865,41806.0,41804.0,0.060862]
[1646395089714,0.34304232,41805.0,41804.0,0.060862]
[1646395089916,0.11742935,41803.0,41801.0,0.01]
[1646395090113,0.45071632,41802.0,41800.0,9.02]
[1646395090312,0.34165808,41801.0,41800.0,9.02]
[1646395090514,0.38945808,41801.0,41800.0,9.02]
[1646395091115,0.38945808,41801.0,41800.0,8.660724]
[1646395091116,0.58732787,41801.0,41800.0,8.660724]
[1646395091313,1.02285012,41801.0,41800.0,8.61520455]
[1646395091512,0.58732787,41801.0,41800.0,8.54322913]
[1646395091711,0.5912506,41801.0,41800.0,8.18394913]
[1646395091911,0.5912506,41801.0,41800.0,8.14844913]
[1646395092113,0.72275045,41801.0,41800.0,8.14844913]
[1646395092312,1.56440853,41801.0,41800.0,7.69962264]
[1646395092519,1.65646228,41801.0,41800.0,6.91121746]
[1646395092768,1.3148042,41801.0,41800.0,6.91121746]
[1646395092968,1.3148042,41801.0,41800.0,6.48033946]
[1646395092969,1.65646228,41801.0,41800.0,6.48033946]
[1646395093170,1.65646228,41801.0,41800.0,6.45033946]
[1646395093372,1.56427867,41801.0,41800.0,6.09106646]
[1646395093573,1.06427867,41801.0,41800.0,6.09106646]
[1646395093772,1.06427867,41801.0,41800.0,5.96166936]
[1646395094172,0.71989352,41801.0,41800.0,5.96166936]
[1646395095277,0.67333171,41801.0,41800.0,5.96166936]
[1646395095473,0.97670898,41801.0,41800.0,5.96166936]
[1646395095673,0.08431271,41801.0,41800.0,5.96166936]
[1646395097213,0.28102085,41801.0,41800.0,5.96166936]
[1646395097415,0.08431271,41801.0,41800.0,5.96166936]
[1646395098919,0.28102085,41801.0,41800.0,5.96166936]
[1646395099323,0.18431271,41801.0,41800.0,5.96166936]
[1646395099922,0.43102085,41801.0,41800.0,5.96166936]
[1646395100160,0.77476889,41801.0,41800.0,5.96166936]
[1646395100763,0.82396772,41801.0,41800.0,5.58238636]
[1646395101262,0.82388378,41801.0,41800.0,5.58238636]
[1646395101463,0.57806075,41801.0,41800.0,5.58238636]
[1646395101864,0.71354848,41801.0,41800.0,5.58238636]
[1646395102865,0.57806075,41801.0,41800.0,5.58238636]
[1646395103063,0.92920993,41801.0,41800.0,5.58238636]
[1646395103264,0.6833869,41801.0,41800.0,5.58238636]
[1646395103914,0.88000805,41801.0,41800.0,5.58238636]
[1646395105419,0.88000805,41801.0,41800.0,5.55238636]
[1646395107017,0.88000805,41801.0,41800.0,5.48287367]
[1646395107220,0.93000805,41801.0,41800.0,5.48287367]
[1646395107659,0.93000805,41801.0,41800.0,5.50287367]
[1646395108066,0.7333869,41801.0,41800.0,4.35517781]
[1646395108465,1.02848317,41801.0,41800.0,4.35517781]
[1646395108663,1.02848317,41801.0,41800.0,3.99587581]
[1646395108863,1.03241224,41801.0,41800.0,3.93087581]
[1646395109063,2.02054179,41801.0,41800.0,3.57157681]
[1646395109263,1.95409522,41801.0,41800.0,3.57157681]
[1646395109565,1.65899895,41801.0,41800.0,3.21228981]
[1646395109962,1.65899895,41801.0,41800.0,2.42582872]
[1646395110164,1.90409522,41801.0,41800.0,1.76039945]
[1646395110366,2.87273859,41801.0,41800.0,0.72286621]
[1646395110569,0.25703841,41798.0,41791.0,0.2]
[1646395110764,0.25703841,41798.0,41776.0,0.977]
[1646395110765,0.6,41791.0,41776.0,0.977]
[1646395110964,0.59295146,41790.0,41776.0,0.977]
[1646395111164,0.7473,41788.0,41776.0,0.977]
[1646395111422,0.04790419,41784.0,41770.0,0.7943]
[1646395111625,2.77962612,41780.0,41770.0,0.7943]
[1646395111819,0.04790419,41776.0,41770.0,0.7943]
[1646395112021,0.04790419,41776.0,41764.0,0.359418]
[1646395112022,0.04790993,41772.0,41767.0,0.009589]
[1646395112222,0.0478,41771.0,41767.0,0.009589]
[1646395112422,0.04790993,41768.0,41762.0,0.059926]
[1646395112620,0.0478,41767.0,41762.0,0.059926]
[1646395112820,0.0478,41766.0,41762.0,0.059926]
[1646395113326,0.119843,41765.0,41762.0,0.059926]
[1646395113523,0.0478,41764.0,41762.0,0.059926]
[1646395113823,0.0478,41764.0,41759.0,0.119852]
[1646395115021,0.10991065,41764.0,41759.0,0.093305]
[1646395115260,0.15991065,41764.0,41759.0,0.093305]
[1646395115965,0.35065,41763.0,41759.0,0.093305]
[1646395116162,0.35065,41763.0,41757.0,0.7943]
[1646395116163,0.119873,41759.0,41757.0,0.7943]
[1646395116365,0.44555325,41758.0,41752.0,0.7698]
[1646395116564,0.99493184,41758.0,41742.0,0.294244]
[1646395116766,0.1,41757.0,41742.0,0.294244]
[1646395117064,0.0478,41756.0,41743.0,0.7452]
[1646395117263,0.34983184,41755.0,41748.0,0.239668]
[1646395117468,0.167706,41754.0,41743.0,0.7452]
[1646395117664,0.267706,41754.0,41743.0,0.92132731]
[1646395117864,2.05179927,41752.0,41743.0,0.7452]
[1646395118064,0.0478,41751.0,41743.0,0.7452]
[1646395118266,0.3056068,41751.0,41743.0,0.90115176]
[1646395118472,0.3556068,41751.0,41747.0,0.059952]
[1646395119116,0.3056068,41751.0,41747.0,0.059952]
[1646395119319,0.1,41750.0,41748.0,0.35938157]
[1646395119518,0.0478,41749.0,41748.0,0.119873]
[1646395120117,0.09573289,41749.0,41748.0,0.119873]
[1646395120319,0.0478,41749.0,41748.0,0.119873]
[1646395120716,0.39763184,41749.0,41744.0,0.05995]
[1646395120916,0.119905,41748.0,41744.0,0.05995]
[1646395121119,0.0478,41747.0,41741.0,0.01]
[1646395121917,1.0,41746.0,41736.0,1.0402]
[1646395122126,0.0478,41747.0,41732.0,0.7914]
[1646395122127,0.5973,41739.0,41732.0,0.7914]
[1646395122321,0.5973,41739.0,41729.0,0.2322]
[1646395122322,0.055227,41736.0,41729.0,0.2322]
[1646395122520,0.0478,41735.0,41727.0,0.00026557]
[1646395122814,0.5973,41734.0,41727.0,0.00026557]
[1646395123013,0.55,41732.0,41722.0,0.245]
[1646395123221,0.10795148,41730.0,41722.0,0.245]
[1646395123413,0.10795148,41730.0,41719.0,0.7491]
[1646395123414,0.04796738,41726.0,41719.0,0.7491]
[1646395123616,0.0478,41725.0,41714.0,0.2322]
[1646395123818,0.71728,41722.0,41714.0,0.2322]
[1646395124016,0.71728,41722.0,41706.0,0.24416369]
[1646395124017,0.5973,41718.0,41706.0,0.24416369]
[1646395124216,0.39763184,41721.0,41706.0,0.00119886]
[1646395124217,1.15493667,41717.0,41706.0,0.00119886]
[1646395124414,0.5973,41712.0,41706.0,0.00119886]
[1646395124613,0.0478,41711.0,41706.0,0.00119886]
[1646395124814,0.0478,41711.0,41709.0,0.19205568]
[1646395125012,0.0478,41711.0,41704.0,0.0011]
[1646395125221,0.0478,41711.0,41708.0,0.119979]
[1646395125616,0.0478,41711.0,41704.0,0.0011]
[1646395125817,0.40981884,41710.0,41704.0,0.0011]
[1646395126014,0.0478,41709.0,41704.0,0.0011]
[1646395126217,0.1478,41709.0,41704.0,0.0011]
[1646395126456,0.120034,41703.0,41693.0,0.6646]
[1646395126652,0.0478,41702.0,41693.0,0.6646]
[1646395127049,0.0478,41702.0,41690.0,0.239]
[1646395127050,0.25524014,41700.0,41690.0,0.239]
[1646395127250,0.060036,41696.0,41689.0,0.16791]
[1646395127546,0.060036,41696.0,41685.0,0.6657]
[1646395127547,0.5,41694.0,41685.0,0.6657]
[1646395127747,0.5,41694.0,41685.0,0.0011]
[1646395127748,2.09856906,41691.0,41685.0,0.0011]
[1646395127949,0.8,41689.0,41673.0,0.120078]
[1646395128146,0.54560065,41690.0,41673.0,0.120078]
[1646395128147,0.895,41688.0,41673.0,0.120078]
[1646395128348,0.39763184,41687.0,41673.0,0.120078]
[1646395128550,0.39763184,41687.0,41672.0,0.01]
[1646395128551,0.5973,41685.0,41672.0,0.01]
[1646395128751,0.7473,41677.0,41672.0,0.01]
[1646395128954,1.14493184,41677.0,41672.0,0.01]
[1646395129149,0.01586146,41675.0,41661.0,0.00196]
[1646395129350,0.5973,41667.0,41661.0,0.00196]
[1646395129547,0.5973,41667.0,41659.0,2.282517]
[1646395129548,0.060069,41665.0,41659.0,2.282517]
[1646395129752,0.6451,41664.0,41659.0,2.282517]
[1646395129950,0.5973,41660.0,41659.0,2.282517]